[Event "*** Titled Tuesday 3|2 Blitz"]
[Site "Chess.com"]
[Date "2017.05.02"]
[Round "10"]
[White "platy3"]
[Black "Hikaru"]
[Result "0-1"]
[WhiteElo "2644"]
[BlackElo "2870"]
[TimeControl "180+2"]
[EndTime "15:15:48 PDT"]
[Termination "Hikaru won by resignation"]

1. e4 {[%clk 0:03:02]} 1... e5 {[%clk 0:02:58.8]} 2. Nf3 {[%clk 0:03:03]} 2...
Nc6 {[%clk 0:02:59.4]} 3. Bb5 {[%clk 0:03:04.5]} 3... Nf6 {[%clk 0:03:00.5]} 4.
O-O {[%clk 0:03:06]} 4... Nxe4 {[%clk 0:03:00.3]} 5. Re1 {[%clk 0:03:07.6]} 5...
Nd6 {[%clk 0:03:01.8]} 6. Nxe5 {[%clk 0:03:09.2]} 6... Be7 {[%clk 0:03:03.3]} 7.
Bd3 {[%clk 0:03:10.7]} 7... Nxe5 {[%clk 0:02:39.3]} 8. Rxe5 {[%clk 0:03:12.6]}
8... O-O {[%clk 0:02:40.3]} 9. Nc3 {[%clk 0:03:13.9]} 9... Bf6 {[%clk
0:02:34.4]} 10. Re1 {[%clk 0:03:11.7]} 10... c6 {[%clk 0:02:33.9]} 11. b3 {[%clk
0:03:06.1]} 11... Re8 {[%clk 0:02:33.6]} 12. Ba3 {[%clk 0:03:03.9]} 12... Rxe1+
{[%clk 0:02:34.3]} 13. Qxe1 {[%clk 0:03:05.8]} 13... Ne8 {[%clk 0:02:35.8]} 14.
Qe4 {[%clk 0:02:54.9]} 14... g6 {[%clk 0:02:37]} 15. Re1 {[%clk 0:02:54.7]}
15... Ng7 {[%clk 0:02:37.4]} 16. Bd6 {[%clk 0:02:50.1]} 16... b6 {[%clk
0:02:38.5]} 17. Qf3 {[%clk 0:02:33.3]} 17... Ne6 {[%clk 0:02:29.2]} 18. Nd5
{[%clk 0:02:09.1]} 18... Bg5 {[%clk 0:02:25.3]} 19. Nf4 {[%clk 0:01:39.9]} 19...
Bb7 {[%clk 0:02:13.8]} 20. Qg3 {[%clk 0:01:34.5]} 20... Nxf4 {[%clk 0:02:01.5]}
21. Bxf4 {[%clk 0:01:34.7]} 21... Bh4 {[%clk 0:02:01.8]} 22. Qf3 {[%clk
0:01:22]} 22... d5 {[%clk 0:01:56.5]} 23. Bh6 {[%clk 0:01:00]} 23... Bg5 {[%clk
0:01:49.4]} 24. Bxg5 {[%clk 0:00:52.3]} 24... Qxg5 {[%clk 0:01:51.3]} 25. Re2
{[%clk 0:00:46.9]} 25... Kg7 {[%clk 0:01:48]} 26. g3 {[%clk 0:00:46.9]} 26... h5
{[%clk 0:01:48.6]} 27. h4 {[%clk 0:00:47.9]} 27... Qf6 {[%clk 0:01:49.7]} 28.
Qe3 {[%clk 0:00:45.8]} 28... c5 {[%clk 0:01:49.9]} 29. Qe7 {[%clk 0:00:44.9]}
29... Bc6 {[%clk 0:01:50.8]} 30. Qxf6+ {[%clk 0:00:34.7]} 30... Kxf6 {[%clk
0:01:52.7]} 31. f4 {[%clk 0:00:29.6]} 31... Bd7 {[%clk 0:01:46.3]} 32. Re5
{[%clk 0:00:28.7]} 32... Be6 {[%clk 0:01:47.4]} 33. Kf2 {[%clk 0:00:28.7]} 33...
a5 {[%clk 0:01:48.2]} 34. Bb5 {[%clk 0:00:28.6]} 34... Rd8 {[%clk 0:01:43.9]}
35. d4 {[%clk 0:00:18.3]} 35... Rc8 {[%clk 0:01:37.1]} 36. Ke2 {[%clk
0:00:18.3]} 36... cxd4 {[%clk 0:01:31.8]} 37. Kd2 {[%clk 0:00:19.4]} 37... Ke7
{[%clk 0:01:32]} 38. Bd3 {[%clk 0:00:19.1]} 38... Kd6 {[%clk 0:01:25.2]} 39. Rg5
{[%clk 0:00:15.6]} 39... Rh8 {[%clk 0:01:21.2]} 40. Re5 {[%clk 0:00:14.7]} 40...
Bg4 {[%clk 0:01:17.8]} 41. Re1 {[%clk 0:00:14.7]} 41... Rg8 {[%clk 0:01:17.2]}
42. Re5 {[%clk 0:00:15.5]} 42... f6 {[%clk 0:01:15.1]} 43. Rxd5+ {[%clk
0:00:16.8]} 43... Kxd5 {[%clk 0:01:15.2]} 44. Bc4+ {[%clk 0:00:18.4]} 44... Ke4
{[%clk 0:01:16.9]} 45. Bxg8 {[%clk 0:00:19.9]} 45... Kf3 {[%clk 0:01:18.6]} 46.
Kd3 {[%clk 0:00:16]} 46... Bf5+ {[%clk 0:01:17.2]} 47. Kxd4 {[%clk 0:00:15.5]}
47... Bxc2 {[%clk 0:01:18.3]} 48. Kd5 {[%clk 0:00:11.8]} 48... Kxg3 {[%clk
0:01:17.6]} 49. Kc6 {[%clk 0:00:06.6]} 49... Kxf4 {[%clk 0:01:13.8]} 50. Kxb6
{[%clk 0:00:07.9]} 50... g5 {[%clk 0:01:15.4]} 51. hxg5 {[%clk 0:00:09]} 51...
fxg5 {[%clk 0:01:17.3]} 52. Kxa5 {[%clk 0:00:10.3]} 52... g4 {[%clk 0:01:18.9]}
53. b4 {[%clk 0:00:11.6]} 53... g3 {[%clk 0:01:20.3]} 0-1

[Event "*** Titled Tuesday 3|2 Blitz"]
[Site "Chess.com"]
[Date "2017.05.02"]
[Round "10"]
[White "SCIM"]
[Black "PowerThinking2650"]
[Result "0-1"]
[WhiteElo "2369"]
[BlackElo "2201"]
[TimeControl "180+2"]
[EndTime "15:15:58 PDT"]
[Termination "PowerThinking2650 won by resignation"]

1. d4 {[%clk 0:02:56]} 1... Nf6 {[%clk 0:03:00.3]} 2. c4 {[%clk 0:02:54.2]} 2...
g6 {[%clk 0:03:01.7]} 3. Nc3 {[%clk 0:02:53.6]} 3... Bg7 {[%clk 0:03:03.2]} 4.
e4 {[%clk 0:02:53.7]} 4... O-O {[%clk 0:03:04.8]} 5. Be3 {[%clk 0:02:50.2]} 5...
d6 {[%clk 0:03:03.9]} 6. f3 {[%clk 0:02:48.9]} 6... Nc6 {[%clk 0:03:01.7]} 7.
Nge2 {[%clk 0:02:45.9]} 7... a6 {[%clk 0:03:02.1]} 8. Qd2 {[%clk 0:02:45.7]}
8... Rb8 {[%clk 0:03:03.2]} 9. Rc1 {[%clk 0:02:44.7]} 9... Bd7 {[%clk
0:03:02.8]} 10. b3 {[%clk 0:02:46.1]} 10... b5 {[%clk 0:02:58.7]} 11. Nd5 {[%clk
0:02:41.5]} 11... bxc4 {[%clk 0:02:52.5]} 12. bxc4 {[%clk 0:02:40.1]} 12... e6
{[%clk 0:02:43.9]} 13. Nxf6+ {[%clk 0:02:39.3]} 13... Bxf6 {[%clk 0:02:44.5]}
14. g3 {[%clk 0:02:33.8]} 14... d5 {[%clk 0:02:00.2]} 15. e5 {[%clk 0:02:16.1]}
15... Be7 {[%clk 0:01:56.6]} 16. c5 {[%clk 0:02:11]} 16... f6 {[%clk 0:01:48.4]}
17. f4 {[%clk 0:02:03.4]} 17... fxe5 {[%clk 0:01:47.9]} 18. fxe5 {[%clk
0:02:03.4]} 18... Rb4 {[%clk 0:00:59]} 19. Bh3 {[%clk 0:01:55.4]} 19... Qb8
{[%clk 0:00:54.8]} 20. Nf4 {[%clk 0:01:46.4]} 20... Rb2 {[%clk 0:00:50.9]} 21.
Rc2 {[%clk 0:01:44.8]} 21... Rb1+ {[%clk 0:00:49]} 22. Rc1 {[%clk 0:01:44.2]}
22... Rb2 {[%clk 0:00:50]} 23. Qc3 {[%clk 0:01:42.6]} 23... Qb5 {[%clk
0:00:30.6]} 24. a4 {[%clk 0:01:38.4]} 24... Qb4 {[%clk 0:00:16.6]} 25. Qxb4
{[%clk 0:01:37.6]} 25... Nxb4 {[%clk 0:00:16.4]} 26. O-O {[%clk 0:01:34]} 26...
Bg5 {[%clk 0:00:13.4]} 27. Rb1 {[%clk 0:01:26.9]} 27... Rxb1 {[%clk 0:00:09.1]}
28. Rxb1 {[%clk 0:01:25.9]} 28... a5 {[%clk 0:00:10.7]} 29. Nxd5 {[%clk
0:01:25.8]} 29... exd5 {[%clk 0:00:08.6]} 30. Bxg5 {[%clk 0:01:17.8]} 30... Bxh3
{[%clk 0:00:08.2]} 31. Bf4 {[%clk 0:01:16.8]} 31... Kg7 {[%clk 0:00:07.7]} 32.
e6 {[%clk 0:01:17.4]} 32... Re8 {[%clk 0:00:07.9]} 33. Bxc7 {[%clk 0:01:17.5]}
33... Rxe6 {[%clk 0:00:08.6]} 34. Bxa5 {[%clk 0:01:17.3]} 34... Nd3 {[%clk
0:00:07]} 35. c6 {[%clk 0:01:00.2]} 35... Rxc6 {[%clk 0:00:05.9]} 36. Bd2 {[%clk
0:00:59.3]} 36... Rc2 {[%clk 0:00:06.3]} 37. Rb7+ {[%clk 0:00:51.1]} 37... Kf6
{[%clk 0:00:07]} 38. Rb6+ {[%clk 0:00:46.3]} 38... Kf5 {[%clk 0:00:07.2]} 39.
Be3 {[%clk 0:00:47.2]} 39... Rg2+ {[%clk 0:00:06.2]} 40. Kh1 {[%clk 0:00:47.1]}
40... Nf2+ {[%clk 0:00:06.3]} 41. Bxf2 {[%clk 0:00:46.4]} 41... Rxf2 {[%clk
0:00:07.2]} 42. Rb1 {[%clk 0:00:46.9]} 42... Rf1+ {[%clk 0:00:08.2]} 43. Rxf1+
{[%clk 0:00:46.9]} 43... Bxf1 {[%clk 0:00:09.5]} 44. Kg1 {[%clk 0:00:48]} 44...
Ba6 {[%clk 0:00:10.3]} 45. Kf2 {[%clk 0:00:48.9]} 45... Ke4 {[%clk 0:00:11.5]}
0-1

[Event "*** Titled Tuesday 3|2 Blitz"]
[Site "Chess.com"]
[Date "2017.05.02"]
[Round "10"]
[White "GM_Huschenbeth"]
[Black "Rikikits"]
[Result "0-1"]
[WhiteElo "2402"]
[BlackElo "2587"]
[TimeControl "180+2"]
[EndTime "15:16:34 PDT"]
[Termination "Rikikits won on time"]

1. e4 {[%clk 0:03:02]} 1... c5 {[%clk 0:02:52.4]} 2. Nf3 {[%clk 0:03:02.9]} 2...
d6 {[%clk 0:02:46.6]} 3. d4 {[%clk 0:03:04]} 3... cxd4 {[%clk 0:02:42.1]} 4.
Nxd4 {[%clk 0:03:05.9]} 4... Nf6 {[%clk 0:02:40.4]} 5. Nc3 {[%clk 0:03:07.5]}
5... Nc6 {[%clk 0:02:40.7]} 6. Bg5 {[%clk 0:03:08.2]} 6... Bd7 {[%clk
0:02:41.6]} 7. Qd2 {[%clk 0:03:08.3]} 7... Rc8 {[%clk 0:02:41.1]} 8. O-O-O
{[%clk 0:03:07.4]} 8... Nxd4 {[%clk 0:02:42.1]} 9. Qxd4 {[%clk 0:03:09.3]} 9...
Qa5 {[%clk 0:02:43.7]} 10. f4 {[%clk 0:03:10.9]} 10... Rxc3 {[%clk 0:02:43.3]}
11. bxc3 {[%clk 0:03:12.7]} 11... e5 {[%clk 0:02:44.1]} 12. Qb4 {[%clk
0:03:13.9]} 12... Qxb4 {[%clk 0:02:44.7]} 13. cxb4 {[%clk 0:03:15.8]} 13... Nxe4
{[%clk 0:02:46.4]} 14. Bh4 {[%clk 0:03:17.3]} 14... Nc3 {[%clk 0:02:26.3]} 15.
Rd3 {[%clk 0:03:16.3]} 15... Ne4 {[%clk 0:01:34]} 16. Re3 {[%clk 0:03:02.6]}
16... f5 {[%clk 0:01:32.4]} 17. fxe5 {[%clk 0:02:43.2]} 17... d5 {[%clk
0:01:21.5]} 18. a3 {[%clk 0:02:05.4]} 18... g5 {[%clk 0:01:11.4]} 19. Rxe4
{[%clk 0:01:39]} 19... fxe4 {[%clk 0:01:13.3]} 20. Bxg5 {[%clk 0:01:40.1]} 20...
Bg7 {[%clk 0:01:13]} 21. Bf4 {[%clk 0:01:41]} 21... Kf7 {[%clk 0:01:02.2]} 22.
Be2 {[%clk 0:01:30]} 22... Kg6 {[%clk 0:01:00.1]} 23. c3 {[%clk 0:01:16.1]}
23... Re8 {[%clk 0:00:54.5]} 24. Kd2 {[%clk 0:00:59.6]} 24... Bxe5 {[%clk
0:00:48.9]} 25. Bxe5 {[%clk 0:01:01.5]} 25... Rxe5 {[%clk 0:00:50.8]} 26. Ke3
{[%clk 0:01:03.4]} 26... h5 {[%clk 0:00:43.1]} 27. Rd1 {[%clk 0:00:56.9]} 27...
h4 {[%clk 0:00:38.7]} 28. c4 {[%clk 0:00:50.9]} 28... Be6 {[%clk 0:00:36.1]} 29.
c5 {[%clk 0:00:27.9]} 29... Rg5 {[%clk 0:00:36.8]} 30. Bf1 {[%clk 0:00:28.5]}
30... Kf6 {[%clk 0:00:34.4]} 31. Kd4 {[%clk 0:00:28]} 31... Rf5 {[%clk
0:00:35.4]} 32. b5 {[%clk 0:00:26.3]} 32... Rf2 {[%clk 0:00:35.3]} 33. Rc1
{[%clk 0:00:19.4]} 33... Rd2+ {[%clk 0:00:33.2]} 34. Kc3 {[%clk 0:00:18.4]}
34... Rf2 {[%clk 0:00:31.1]} 35. Kd4 {[%clk 0:00:18.7]} 35... Rd2+ {[%clk
0:00:32.1]} 36. Kc3 {[%clk 0:00:17.3]} 36... Ra2 {[%clk 0:00:33.2]} 37. Kb3
{[%clk 0:00:15.4]} 37... Rf2 {[%clk 0:00:25.7]} 38. c6 {[%clk 0:00:12.3]} 38...
bxc6 {[%clk 0:00:26.5]} 39. bxc6 {[%clk 0:00:14.2]} 39... Ke5 {[%clk 0:00:27.2]}
40. Ba6 {[%clk 0:00:13.1]} 40... Rxg2 {[%clk 0:00:26.4]} 41. c7 {[%clk
0:00:10.2]} 41... d4+ {[%clk 0:00:25.5]} 42. Kb4 {[%clk 0:00:08.9]} 42... Rb2+
{[%clk 0:00:25.3]} 43. Ka5 {[%clk 0:00:06.3]} 43... d3 {[%clk 0:00:24.7]} 44.
Rc6 {[%clk 0:00:03.3]} 44... Bh3 {[%clk 0:00:20.6]} 0-1

[Event "*** Titled Tuesday 3|2 Blitz"]
[Site "Chess.com"]
[Date "2017.05.02"]
[Round "10"]
[White "ChristopherYoo"]
[Black "chessking2151"]
[Result "1-0"]
[WhiteElo "2250"]
[BlackElo "2335"]
[TimeControl "180+2"]
[EndTime "15:17:13 PDT"]
[Termination "ChristopherYoo won by resignation"]

1. e4 {[%clk 0:03:02]} 1... c5 {[%clk 0:03:00.2]} 2. Nf3 {[%clk 0:03:02.2]} 2...
d6 {[%clk 0:03:00.4]} 3. d4 {[%clk 0:03:02.7]} 3... cxd4 {[%clk 0:03:02]} 4.
Nxd4 {[%clk 0:03:03.3]} 4... Nf6 {[%clk 0:03:03.1]} 5. Nc3 {[%clk 0:03:04.6]}
5... a6 {[%clk 0:03:04.4]} 6. f3 {[%clk 0:03:05.9]} 6... e5 {[%clk 0:03:03]} 7.
Nb3 {[%clk 0:03:06.4]} 7... h5 {[%clk 0:03:04.2]} 8. Be3 {[%clk 0:03:05.1]} 8...
Be6 {[%clk 0:03:05]} 9. Qd2 {[%clk 0:03:05.8]} 9... Nbd7 {[%clk 0:03:05.8]} 10.
O-O-O {[%clk 0:03:06.4]} 10... Be7 {[%clk 0:03:07]} 11. g3 {[%clk 0:02:53.3]}
11... b5 {[%clk 0:03:04.3]} 12. f4 {[%clk 0:02:46]} 12... b4 {[%clk 0:03:01.4]}
13. Nd5 {[%clk 0:02:42.8]} 13... Nxe4 {[%clk 0:02:59.4]} 14. Qxb4 {[%clk
0:02:43.4]} 14... Bxd5 {[%clk 0:02:50.5]} 15. Rxd5 {[%clk 0:02:43.9]} 15... Nef6
{[%clk 0:02:51.9]} 16. Ra5 {[%clk 0:02:21.9]} 16... d5 {[%clk 0:02:49.1]} 17.
Qa4 {[%clk 0:02:21.4]} 17... Ng4 {[%clk 0:02:23.9]} 18. Bd2 {[%clk 0:01:52.2]}
18... O-O {[%clk 0:02:16.2]} 19. Rxd5 {[%clk 0:01:45.2]} 19... Ngf6 {[%clk
0:02:15.1]} 20. Rd3 {[%clk 0:01:39.9]} 20... e4 {[%clk 0:01:23.4]} 21. Rd4
{[%clk 0:01:38.2]} 21... Nb6 {[%clk 0:01:15.2]} 22. Rxd8 {[%clk 0:01:08.5]}
22... Nxa4 {[%clk 0:01:15.4]} 23. Rxa8 {[%clk 0:01:05.7]} 23... Rxa8 {[%clk
0:01:14.3]} 24. Bg2 {[%clk 0:01:06.8]} 24... Re8 {[%clk 0:01:07.3]} 25. Re1
{[%clk 0:01:04.7]} 25... Bf8 {[%clk 0:01:01.9]} 26. Nd4 {[%clk 0:01:01.3]} 26...
Nc5 {[%clk 0:00:58.5]} 27. b4 {[%clk 0:00:53.6]} 27... Ncd7 {[%clk 0:00:54.8]}
28. c4 {[%clk 0:00:40.1]} 28... a5 {[%clk 0:00:38.1]} 29. a3 {[%clk 0:00:37]}
29... Nb6 {[%clk 0:00:37.6]} 30. c5 {[%clk 0:00:32.4]} 30... Nc4 {[%clk
0:00:38.2]} 31. Bf1 {[%clk 0:00:28.6]} 31... Nxd2 {[%clk 0:00:26.1]} 32. Kxd2
{[%clk 0:00:29.5]} 32... axb4 {[%clk 0:00:27.6]} 33. axb4 {[%clk 0:00:30.1]}
33... Nd5 {[%clk 0:00:29.1]} 34. Rb1 {[%clk 0:00:21.2]} 34... g6 {[%clk
0:00:24.3]} 35. Bc4 {[%clk 0:00:20.8]} 35... Nxb4 {[%clk 0:00:15.4]} 36. Rxb4
{[%clk 0:00:21.2]} 36... Bxc5 {[%clk 0:00:16.5]} 37. Rb7 {[%clk 0:00:20.6]}
37... Rd8 {[%clk 0:00:14.1]} 38. Bxf7+ {[%clk 0:00:17.8]} 38... Kh8 {[%clk
0:00:14.6]} 39. Bxg6 {[%clk 0:00:15.7]} 39... Rxd4+ {[%clk 0:00:15.6]} 40. Ke2
{[%clk 0:00:14]} 40... Ra4 {[%clk 0:00:16.5]} 41. Rh7+ {[%clk 0:00:13.1]} 41...
Kg8 {[%clk 0:00:17]} 42. Rxh5 {[%clk 0:00:13.9]} 42... Ra2+ {[%clk 0:00:17.1]}
43. Kd1 {[%clk 0:00:13.9]} 43... Ra1+ {[%clk 0:00:09.2]} 44. Kc2 {[%clk
0:00:14.1]} 44... Bf8 {[%clk 0:00:07.2]} 45. Bxe4 {[%clk 0:00:14.1]} 45... Ra2+
{[%clk 0:00:08.6]} 46. Kd3 {[%clk 0:00:13.3]} 46... Ra3+ {[%clk 0:00:09.7]} 47.
Kd4 {[%clk 0:00:13.8]} 47... Bg7+ {[%clk 0:00:11]} 48. Kc4 {[%clk 0:00:13.1]}
48... Ra4+ {[%clk 0:00:12]} 49. Kd3 {[%clk 0:00:14]} 49... Ra3+ {[%clk
0:00:12.6]} 50. Ke2 {[%clk 0:00:15]} 50... Bd4 {[%clk 0:00:12.9]} 51. Bd3 {[%clk
0:00:12.5]} 51... Kg7 {[%clk 0:00:10.7]} 52. Rd5 {[%clk 0:00:13.1]} 52... Bf6
{[%clk 0:00:11.4]} 53. h4 {[%clk 0:00:13.2]} 53... Ra2+ {[%clk 0:00:11.2]} 54.
Kf3 {[%clk 0:00:14.3]} 54... Ra3 {[%clk 0:00:12.5]} 55. Rd7+ {[%clk 0:00:15]}
55... Kf8 {[%clk 0:00:13.6]} 56. h5 {[%clk 0:00:14.2]} 56... Bg7 {[%clk
0:00:14.4]} 57. g4 {[%clk 0:00:14.6]} 57... Rb3 {[%clk 0:00:14.3]} 58. g5 {[%clk
0:00:14.8]} 58... Bc3 {[%clk 0:00:15]} 59. h6 {[%clk 0:00:14.8]} 59... Bh8
{[%clk 0:00:15.4]} 60. g6 {[%clk 0:00:13.9]} 60... Bf6 {[%clk 0:00:15.8]} 61.
g7+ {[%clk 0:00:13.8]} 61... Ke8 {[%clk 0:00:15.6]} 62. g8=Q+ {[%clk 0:00:13.6]}
62... Kxd7 {[%clk 0:00:16.8]} 63. Qxb3 {[%clk 0:00:15]} 1-0

[Event "*** Titled Tuesday 3|2 Blitz"]
[Site "Chess.com"]
[Date "2017.05.02"]
[Round "10"]
[White "Spartakus1975"]
[Black "GMBenjaminBok"]
[Result "0-1"]
[WhiteElo "2597"]
[BlackElo "2679"]
[TimeControl "180+2"]
[EndTime "15:17:33 PDT"]
[Termination "GMBenjaminBok won by resignation"]

1. e4 {[%clk 0:02:55.6]} 1... c5 {[%clk 0:03:00]} 2. c3 {[%clk 0:02:56.2]} 2...
Nf6 {[%clk 0:03:00.4]} 3. e5 {[%clk 0:02:57.2]} 3... Nd5 {[%clk 0:03:01.7]} 4.
Nf3 {[%clk 0:02:58.8]} 4... Nc6 {[%clk 0:03:01.5]} 5. Bc4 {[%clk 0:02:59.5]}
5... Nb6 {[%clk 0:03:02.6]} 6. Bb3 {[%clk 0:03:00.9]} 6... d5 {[%clk 0:02:59.9]}
7. exd6 {[%clk 0:03:00]} 7... Qxd6 {[%clk 0:03:00.7]} 8. O-O {[%clk 0:02:57.3]}
8... Be6 {[%clk 0:03:00.6]} 9. Bxe6 {[%clk 0:02:42]} 9... Qxe6 {[%clk
0:03:01.4]} 10. a4 {[%clk 0:02:39.2]} 10... Qd7 {[%clk 0:02:58.4]} 11. a5 {[%clk
0:02:39]} 11... Nd5 {[%clk 0:02:59.3]} 12. a6 {[%clk 0:02:40]} 12... b6 {[%clk
0:03:00.1]} 13. d4 {[%clk 0:02:41.1]} 13... e6 {[%clk 0:02:59.1]} 14. Ne5 {[%clk
0:02:18.1]} 14... Nxe5 {[%clk 0:02:58]} 15. dxe5 {[%clk 0:02:18.7]} 15... c4
{[%clk 0:02:48]} 16. Qg4 {[%clk 0:02:17.5]} 16... b5 {[%clk 0:02:42.5]} 17. Nd2
{[%clk 0:02:18.2]} 17... h5 {[%clk 0:02:40.9]} 18. Qf3 {[%clk 0:02:18.7]} 18...
Qc7 {[%clk 0:02:29.5]} 19. Re1 {[%clk 0:02:10.5]} 19... Be7 {[%clk 0:02:29.9]}
20. Qe4 {[%clk 0:02:04.3]} 20... g6 {[%clk 0:02:27.6]} 21. Nf3 {[%clk
0:02:04.3]} 21... Kf8 {[%clk 0:02:23.2]} 22. Bg5 {[%clk 0:02:04.7]} 22... Kg7
{[%clk 0:02:21.6]} 23. Rad1 {[%clk 0:01:59.8]} 23... Rab8 {[%clk 0:02:11.6]} 24.
h3 {[%clk 0:01:57]} 24... Rb6 {[%clk 0:02:10.3]} 25. Ra1 {[%clk 0:01:14.6]}
25... Rd8 {[%clk 0:02:03.4]} 26. Qh4 {[%clk 0:01:11]} 26... Bxg5 {[%clk
0:01:46.7]} 27. Nxg5 {[%clk 0:01:09]} 27... Qe7 {[%clk 0:01:46.9]} 28. Qg3
{[%clk 0:01:07.9]} 28... b4 {[%clk 0:01:42.5]} 29. Ne4 {[%clk 0:01:05]} 29...
bxc3 {[%clk 0:01:41.7]} 30. bxc3 {[%clk 0:01:05.4]} 30... Rb3 {[%clk 0:01:42]}
31. Rad1 {[%clk 0:01:03.5]} 31... Ra3 {[%clk 0:01:04]} 32. Rd4 {[%clk
0:01:01.8]} 32... Nxc3 {[%clk 0:00:32.5]} 33. Rxd8 {[%clk 0:00:31.7]} 33... Ne2+
{[%clk 0:00:29.6]} 34. Rxe2 {[%clk 0:00:32.5]} 34... Rxg3 {[%clk 0:00:30.6]} 35.
Rc8 {[%clk 0:00:31.4]} 35... Rd3 {[%clk 0:00:26]} 36. Nf6 {[%clk 0:00:31.4]}
36... Rd8 {[%clk 0:00:25.4]} 37. Rxc4 {[%clk 0:00:32.3]} 37... Qa3 {[%clk
0:00:23.6]} 38. f4 {[%clk 0:00:17.2]} 38... Qg3 {[%clk 0:00:19.1]} 39. Rc1
{[%clk 0:00:08.7]} 39... Qxf4 {[%clk 0:00:20.1]} 40. Rf1 {[%clk 0:00:10.3]}
40... Qd4+ {[%clk 0:00:20.1]} 41. Kh1 {[%clk 0:00:11.8]} 41... Qa4 {[%clk
0:00:18.9]} 42. Ref2 {[%clk 0:00:11.9]} 42... Rd1 {[%clk 0:00:18.8]} 43. Ne8+
{[%clk 0:00:10.9]} 43... Kf8 {[%clk 0:00:14.5]} 44. Nd6 {[%clk 0:00:11.8]} 44...
Rxf1+ {[%clk 0:00:14.6]} 45. Rxf1 {[%clk 0:00:13]} 45... f5 {[%clk 0:00:13.9]}
46. exf6 {[%clk 0:00:11.6]} 46... Qxa6 {[%clk 0:00:15]} 47. Rd1 {[%clk 0:00:10]}
47... Qc6 {[%clk 0:00:12.4]} 48. Kh2 {[%clk 0:00:06.7]} 48... a5 {[%clk
0:00:13.1]} 49. h4 {[%clk 0:00:06.2]} 49... a4 {[%clk 0:00:13.4]} 50. Kh3 {[%clk
0:00:05.4]} 50... a3 {[%clk 0:00:13.5]} 51. g3 {[%clk 0:00:03.5]} 51... a2
{[%clk 0:00:13.7]} 52. g4 {[%clk 0:00:04.9]} 52... a1=Q {[%clk 0:00:12.7]} 53.
Rxa1 {[%clk 0:00:06.4]} 53... Qc3+ {[%clk 0:00:13.6]} 54. Kh2 {[%clk 0:00:06.8]}
54... Qxa1 {[%clk 0:00:14.5]} 55. Ne4 {[%clk 0:00:07.4]} 55... Qe5+ {[%clk
0:00:15]} 56. Ng3 {[%clk 0:00:07]} 56... hxg4 {[%clk 0:00:16]} 57. Kg2 {[%clk
0:00:08.3]} 57... Qxf6 {[%clk 0:00:17.2]} 58. Kh2 {[%clk 0:00:09.5]} 58... Qf2+
{[%clk 0:00:18]} 59. Kh1 {[%clk 0:00:11.3]} 59... Qxg3 {[%clk 0:00:19.1]} 60. h5
{[%clk 0:00:13.2]} 60... Qf3+ {[%clk 0:00:19.9]} 61. Kg1 {[%clk 0:00:13.8]}
61... g3 {[%clk 0:00:20.2]} 0-1